{"text_format":"1","workbook":"xlsx","n_sheets":3,"sheets":["Vejledning","UU vejledere","satser"],"not_rendered":{"charts":0,"images":0,"macros":1,"external_links":0,"defined_names":0,"comments":2,"pivot_tables":0},"unopened":[],"bounds":{"document_bytes":16777216,"sheet_cells":100000,"rows_first":2000,"rows_last":500,"rows_between":2000,"halvings":0,"cell_chars":16384,"cell_head_chars":4096},"cells_cut":0,"cells_raw":0,"read":"whole","date_system":"1900"}

{"sheet":"Vejledning","index":0,"n_rows":23,"n_cols":1,"rows_kept":23,"cut":false,"hidden":false,"merged":[]}
["Vejledning til regneark, lønberegning."]
[]
["Regnearket anvendes til kontrol af lønsedler."]
["Regnearket kan anvendes af UU vejledere  ansat ved Ungdommens Uddannelsesvejlednng i Odense."]
[]
[]
["Brug arket \"UU vejledere\", der kan kun indtastes i de gule felter!"]
[]
["Beskæftigelsesgrad indtastes med ugentligt timetal (fremgår af lønsedlen)"]
["Grundløn og andre tillæg gældende for alle fremkommer automatisk."]
["Tillæg for anciennitet ved at taste 1 ved relevant anciennitet (fremgår af lønsedlen)"]
["Funktions- og kvalifikationsløn indtastes med 1 ud for funktionen/kvalifikationen"]
[]
["Nogle vejledere har personlige tillæg. Disse indtastes med det månedlige beløb, der fremgår af lønsedlen."]
["Der kan evt. indtastes navn på disse tillæg."]
[]
["Månedslønnen fremkommer automatisk og er sammenlignelig med lønsedlen"]
[]
["Bemærk: Der kan fremkomme øreafvigelser p.g.a. afrunding."]
[]
["Kørselsgodtgørelse o.l. udbetales konkret og fremgår ikke af lønberegneren"]
[]
["Kommentarer eller rettelser er velkomne, kontakt Bo Tryggedsson, Odense Lærerforening."]

{"sheet":"UU vejledere","index":1,"n_rows":35,"n_cols":3,"rows_kept":35,"cut":false,"hidden":false,"merged":[[1,0,2,2],[0,0,0,1]]}
["Lønberegning niveau",null,{"$f":"satser!F1","v":"01.04.2023"}]
["UU Vejledere"]
[]
[]
["Navn: "]
["Måned"]
[]
["Beskæftigelsesgrad (indsæt ugentligt timetal)",37]
[null,null,"Månedsløn"]
["Grundløn trin 31",31,{"$f":"satser!B11*B8/37","v":30140.5}]
["Grundlønstillæg - lærer",null,{"$f":"IF(B13=1,\"\",satser!I3*B8/37)","v":374.57600000000002}]
["Anciennitetstillæg (trin 31-35)",null,{"$f":"IF((B12+B13)>1,\"Fejl: kun et tillæg\",IF(B12=1,satser!D15*B8/37,\"\"))","v":""}]
["Anciennitetstillæg (trin 31-40)",null,{"$f":"IF((B12+B13)>1,\"Fejl: kun et tillæg\",IF(B13=1,satser!D20*B8/37,\"\"))","v":""}]
["Anciennitetstillæg - lærer",null,{"$f":"IF(AND(B14=1,B13=1),satser!I4*B8/37,\"\")","v":""}]
[]
[]
["Funktions- og kvalifikationsløn: Tast 1 i det gule felt, hvis omfattet:"]
["Vejledertillæg",null,{"$f":"satser!I12*B8/37","v":986.37999999999988}]
["Vejleder § 3, stk. 3",null,{"$f":"satser!I13*B8/37","v":1311.02}]
["Vejleder § 3, stk. 4",null,{"$f":"satser!I14*B8/37","v":936.43999999999994}]
["TR uden forhandlingskompetence",null,{"$f":"(IF(B21>1,\"Fejl:kun et tillæg\",IF(B21>0,B21*satser!I15,\"\")))","v":""}]
["TR uden forhandlingskompetence > 35",null,{"$f":"(IF(B22>1,\"Fejl:kun et tillæg\",IF(B22>0,B22*satser!I16,\"\")))","v":""}]
["AMR funktion",null,{"$f":"(IF(B23>1,\"Fejl:kun et tillæg\",IF(B23>0,B23*satser!I17,\"\")))","v":""}]
[]
["Vejlederuddannelse",null,{"$f":"(IF((B25+B26)>1,\"Fejl:kun et tillæg\",IF(B25>0,B25*satser!I20*B8/37,\"\")))","v":""}]
["Anden diplom/master",null,{"$f":"(IF((B25+B26)>1,\"Fejl:kun et tillæg\",IF(B26>0,B26*satser!I21*B8/37,\"\")))","v":""}]
[]
["Andre tillæg, herunder personlige tillæg. Indtast beløb fra lønseddel"]
[]
[]
[]
[]
[]
[]
["Fast løn i alt",null,{"$f":"SUM(C10:C34)","v":33748.916000000005}]

{"sheet":"satser","index":2,"n_rows":28,"n_cols":10,"rows_kept":28,"cut":false,"hidden":false,"merged":[[0,0,0,4],[18,10,18,11],[2,2,2,3],[5,2,5,3]]}
["Satser pr. ",null,null,null,null,"01.04.2023"]
[null,null,null,null,null,null,"Grundbeløb",null,"Månedligt beløb pr.",{"$f":"F1","v":"01.04.2023"}]
[null,null,null,null,null,"Grundlønstillæg - lærer",3000,null,{"$f":"G3*C28/12","v":374.57600000000002}]
[null,null,null,null,null,"Anciennitetstillæg - lærer",10000,null,{"$f":"G4*C28/12","v":1248.5866666666668}]
[null,null,null,null,null,"Grundlønstillæg - skolekonsulent",null,12000,{"$f":"H5*C28/12","v":1498.3040000000001}]
["Løntrin ","Pr. måned","Anciennitetstillæg",null,null,"Stillingstillæg - lærer",null,13000,{"$f":"H6*C28/12","v":1623.1626666666668}]
[null,null,null,null,null,"Pension - stillingstilæg lærer",null,2202,{"$f":"H7*C28/12","v":274.938784},"Beløbet er 17,3% af 13.000 fratrukket særlig ferie"]
[]
[]
[null,null,null,null,null,null,"Grundbeløb",null,"Månedligt beløb pr.",{"$f":"F1","v":"01.04.2023"}]
[31,30140.5,null,null,null,"Funktions- og kvalifikationsløn: ","Vejledere",null,"Vejledere"]
[32,30626.166666666668,null,null,null,"Centralt vejledertillæg",7900,null,{"$f":"ROUND(G12*$C$28/12,2)","v":986.38}]
[33,31121.75,null,null,null,"Vejleder § 3, stk. 3",10500,null,{"$f":"ROUND(G13*$C$28/12,2)","v":1311.02}]
[34,31628.083333333332,null,null,null,"Vejleder § 3, stk. 4",7500,null,936.44]
[35,32144.083333333332,"31 - 35",{"$f":"B15-B11","v":2003.5833333333321},null,"TR uden forhandlingskompetence",5350,null,667.99]
[36,32671.166666666668,null,null,null,"TR uden forhandlingskompetence > 35",6000,null,749.15]
[37,33208.5,null,null,null,"AMR funktion",5350,null,{"$f":"ROUND(G17*$C$28/12,2)","v":667.99}]
[38,33781.75]
[39,34352.75]
[40,34935.583333333336,"31 - 40",{"$f":"B20-B11","v":4795.0833333333358},null,"Vejlederuddannelse",10500,null,{"$f":"ROUND(G20*$C$28/12,2)","v":1311.02}]
[null,null,null,null,null,"Anden diplom/master",7500,null,{"$f":"ROUND(G21*$C$28/12,2)","v":936.44}]
[]
[]
[]
[]
[]
[]
["Reguleringsfaktor:",null,1.4983040000000001]